[Event "*** SCC Grand Prix: Titled Tuesday Blitz"]
[Site "Chess.com"]
[Date "2020.07.07"]
[Round "8"]
[White "colegiodemadrid"]
[Black "Nemsko"]
[Result "1-0"]
[WhiteElo "2416"]
[BlackElo "2290"]
[TimeControl "180+1"]
[EndTime "11:35:48 PDT"]
[Termination "colegiodemadrid won by resignation"]

1. e4 {[%clk 0:03:00.9]} 1... e5 {[%clk 0:02:53.6]} 2. Nf3 {[%clk 0:03:00.8]}
2... Nc6 {[%clk 0:02:51.9]} 3. Bb5 {[%clk 0:03:01.3]} 3... a6 {[%clk 0:02:51.3]}
4. Ba4 {[%clk 0:03:01.3]} 4... Nf6 {[%clk 0:02:51.5]} 5. d3 {[%clk 0:02:55.7]}
5... b5 {[%clk 0:02:50.7]} 6. Bb3 {[%clk 0:02:55.9]} 6... Be7 {[%clk 0:02:50.3]}
7. g4 {[%clk 0:02:56.3]} 7... d6 {[%clk 0:02:44.1]} 8. g5 {[%clk 0:02:53.7]}
8... Nh5 {[%clk 0:02:40]} 9. Bd5 {[%clk 0:02:54.1]} 9... Bd7 {[%clk 0:02:28.2]}
10. Bxc6 {[%clk 0:02:54.6]} 10... Bxc6 {[%clk 0:02:28.2]} 11. Nxe5 {[%clk
0:02:55.2]} 11... dxe5 {[%clk 0:02:28.2]} 12. Qxh5 {[%clk 0:02:55.8]} 12... Qd4
{[%clk 0:01:58.4]} 13. Qe2 {[%clk 0:02:25.2]} 13... b4 {[%clk 0:01:46.3]} 14.
Nd2 {[%clk 0:02:12.3]} 14... O-O {[%clk 0:01:25.5]} 15. Nc4 {[%clk 0:02:11.1]}
15... f5 {[%clk 0:01:16.9]} 16. Be3 {[%clk 0:02:02.4]} 16... Qd7 {[%clk
0:01:06.3]} 17. Nxe5 {[%clk 0:02:02.1]} 17... Qe6 {[%clk 0:01:06.5]} 18. Nxc6
{[%clk 0:01:51.5]} 18... Qxc6 {[%clk 0:01:07.4]} 19. O-O-O {[%clk 0:01:38]}
19... fxe4 {[%clk 0:01:05.4]} 20. dxe4 {[%clk 0:01:37.5]} 20... Qxe4 {[%clk
0:01:05.9]} 21. Rhg1 {[%clk 0:01:34]} 21... Kh8 {[%clk 0:01:02.2]} 22. Qg4
{[%clk 0:01:29.6]} 22... Qxg4 {[%clk 0:00:47.3]} 23. Rxg4 {[%clk 0:01:30.5]}
23... Bd6 {[%clk 0:00:45.8]} 24. h4 {[%clk 0:01:29.7]} 24... Rae8 {[%clk
0:00:45.4]} 25. h5 {[%clk 0:01:29.1]} 25... Re6 {[%clk 0:00:39.1]} 26. h6 {[%clk
0:01:28.6]} 26... Kg8 {[%clk 0:00:34.6]} 27. hxg7 {[%clk 0:01:24.7]} 27... Kxg7
{[%clk 0:00:35.5]} 28. Rh1 {[%clk 0:01:23]} 28... Rh8 {[%clk 0:00:25.1]} 29.
Bd4+ {[%clk 0:01:06.8]} 29... Be5 {[%clk 0:00:18.4]} 30. Re4 {[%clk 0:01:07.3]}
30... Rhe8 {[%clk 0:00:18]} 31. Rhe1 {[%clk 0:01:07]} 31... Bxd4 {[%clk
0:00:16.1]} 32. Rxe6 {[%clk 0:01:06.8]} 32... Rxe6 {[%clk 0:00:16.7]} 33. Rxe6
{[%clk 0:01:07.4]} 33... Bxf2 {[%clk 0:00:17.4]} 34. Rxa6 {[%clk 0:01:02.3]}
34... Be3+ {[%clk 0:00:17.2]} 35. Kd1 {[%clk 0:01:01.8]} 35... Bxg5 {[%clk
0:00:17.8]} 36. Rc6 {[%clk 0:01:01.2]} 36... Bf4 {[%clk 0:00:17.2]} 37. Ke2
{[%clk 0:01:01.7]} 37... h5 {[%clk 0:00:17.2]} 38. Kf3 {[%clk 0:01:02.3]} 38...
Be5 {[%clk 0:00:17.5]} 39. c3 {[%clk 0:00:58.5]} 39... bxc3 {[%clk 0:00:17.4]}
40. bxc3 {[%clk 0:00:59.4]} 40... Kf7 {[%clk 0:00:17.2]} 41. a4 {[%clk
0:00:59.1]} 41... Ke7 {[%clk 0:00:17.1]} 42. a5 {[%clk 0:00:59.5]} 42... Kd7
{[%clk 0:00:17.8]} 43. Rh6 {[%clk 0:00:59.1]} 43... Kc8 {[%clk 0:00:17.8]} 44.
a6 {[%clk 0:00:58.6]} 44... Kb8 {[%clk 0:00:17.1]} 45. c4 {[%clk 0:00:57.1]}
45... Ka7 {[%clk 0:00:16.7]} 46. Rxh5 {[%clk 0:00:55.6]} 46... Bd6 {[%clk
0:00:16.3]} 47. Rh6 {[%clk 0:00:55]} 47... Kxa6 {[%clk 0:00:16.6]} 48. c5 {[%clk
0:00:55.1]} 48... Kb5 {[%clk 0:00:16.3]} 49. cxd6 {[%clk 0:00:55.4]} 49... cxd6
{[%clk 0:00:16.5]} 50. Rxd6 {[%clk 0:00:56.1]} 1-0

[Event "*** SCC Grand Prix: Titled Tuesday Blitz"]
[Site "Chess.com"]
[Date "2020.07.07"]
[Round "8"]
[White "NowInChess"]
[Black "esrosenberg"]
[Result "0-1"]
[WhiteElo "2140"]
[BlackElo "2284"]
[TimeControl "180+1"]
[EndTime "11:35:49 PDT"]
[Termination "esrosenberg won on time"]

1. e4 {[%clk 0:03:00.9]} 1... e5 {[%clk 0:02:59.7]} 2. Bc4 {[%clk 0:02:58]} 2...
Nf6 {[%clk 0:02:29.8]} 3. d3 {[%clk 0:02:57.5]} 3... Nc6 {[%clk 0:02:27]} 4. Nc3
{[%clk 0:02:56.8]} 4... Bc5 {[%clk 0:02:25.3]} 5. f4 {[%clk 0:02:55.8]} 5... d6
{[%clk 0:02:22.1]} 6. Nf3 {[%clk 0:02:55.5]} 6... exf4 {[%clk 0:02:06.6]} 7.
Bxf4 {[%clk 0:02:54.6]} 7... a6 {[%clk 0:01:55]} 8. d4 {[%clk 0:02:26.6]} 8...
Bb4 {[%clk 0:01:52.2]} 9. O-O {[%clk 0:02:23]} 9... Bg4 {[%clk 0:01:49.8]} 10.
Qd3 {[%clk 0:01:46.7]} 10... Bxf3 {[%clk 0:01:37.4]} 11. Rxf3 {[%clk 0:01:40.8]}
11... Nxd4 {[%clk 0:01:37.5]} 12. Bxf7+ {[%clk 0:01:23.1]} 12... Kxf7 {[%clk
0:01:28.8]} 13. Qc4+ {[%clk 0:01:14.4]} 13... Ke8 {[%clk 0:01:21.5]} 14. Qxb4
{[%clk 0:00:51.2]} 14... Nxf3+ {[%clk 0:01:18.4]} 15. gxf3 {[%clk 0:00:50.2]}
15... Qd7 {[%clk 0:00:54.6]} 16. Qxb7 {[%clk 0:00:36.2]} 16... Kf7 {[%clk
0:00:54.8]} 17. Qb3+ {[%clk 0:00:31.4]} 17... Qe6 {[%clk 0:00:53]} 18. Qxe6+
{[%clk 0:00:20]} 18... Kxe6 {[%clk 0:00:53.2]} 19. Bg5 {[%clk 0:00:15.5]} 19...
Rhf8 {[%clk 0:00:46.2]} 20. Re1 {[%clk 0:00:12.7]} 20... c6 {[%clk 0:00:43.4]}
21. Rd1 {[%clk 0:00:10.8]} 21... Rab8 {[%clk 0:00:41.7]} 22. b3 {[%clk 0:00:10]}
22... h6 {[%clk 0:00:39.7]} 23. Bh4 {[%clk 0:00:06.3]} 23... Nh5 {[%clk
0:00:36]} 24. Kg2 {[%clk 0:00:02.9]} 24... g5 {[%clk 0:00:27.8]} 25. Bf2 {[%clk
0:00:01.8]} 25... Nf4+ {[%clk 0:00:27]} 26. Kf1 {[%clk 0:00:01.7]} 26... Nh3
{[%clk 0:00:23.8]} 0-1

[Event "*** SCC Grand Prix: Titled Tuesday Blitz"]
[Site "Chess.com"]
[Date "2020.07.07"]
[Round "8"]
[White "VitaliyBernadskiy"]
[Black "Shubinkirill2003"]
[Result "0-1"]
[WhiteElo "2750"]
[BlackElo "2638"]
[TimeControl "180+1"]
[EndTime "11:35:50 PDT"]
[Termination "Shubinkirill2003 won by resignation"]

1. e4 {[%clk 0:03:00.9]} 1... e6 {[%clk 0:03:00.1]} 2. d4 {[%clk 0:02:59.9]}
2... d5 {[%clk 0:03:00.3]} 3. Nc3 {[%clk 0:03:00.8]} 3... Bb4 {[%clk 0:03:00.3]}
4. e5 {[%clk 0:03:00.7]} 4... b6 {[%clk 0:03:00.3]} 5. a3 {[%clk 0:02:57.6]}
5... Bf8 {[%clk 0:03:00]} 6. Nce2 {[%clk 0:02:53]} 6... c5 {[%clk 0:02:59.2]} 7.
c3 {[%clk 0:02:53.2]} 7... Ba6 {[%clk 0:02:54.8]} 8. f4 {[%clk 0:02:50]} 8...
Ne7 {[%clk 0:02:45.5]} 9. Nf3 {[%clk 0:02:48.7]} 9... h5 {[%clk 0:02:40.6]} 10.
g3 {[%clk 0:02:47.2]} 10... Qd7 {[%clk 0:02:30.3]} 11. b4 {[%clk 0:02:44.6]}
11... Bc4 {[%clk 0:02:12.4]} 12. Nd2 {[%clk 0:02:26.2]} 12... Bd3 {[%clk
0:02:03]} 13. bxc5 {[%clk 0:02:24.6]} 13... bxc5 {[%clk 0:01:50]} 14. Nb3 {[%clk
0:02:23.5]} 14... Bxe2 {[%clk 0:01:34.2]} 15. Bxe2 {[%clk 0:02:24.4]} 15... c4
{[%clk 0:01:30.4]} 16. Nc5 {[%clk 0:02:00.3]} 16... Qc6 {[%clk 0:01:30]} 17.
Bxh5 {[%clk 0:01:59.2]} 17... Nf5 {[%clk 0:01:13.1]} 18. Bf3 {[%clk 0:01:34.4]}
18... Bxc5 {[%clk 0:01:10.6]} 19. dxc5 {[%clk 0:01:35.3]} 19... Qxc5 {[%clk
0:01:11.4]} 20. Qe2 {[%clk 0:01:30.8]} 20... Nd7 {[%clk 0:01:01.7]} 21. a4
{[%clk 0:01:30.5]} 21... Rb8 {[%clk 0:00:42.6]} 22. Ba3 {[%clk 0:01:27.8]} 22...
Qb6 {[%clk 0:00:38.4]} 23. Kf1 {[%clk 0:01:17.4]} 23... Ne3+ {[%clk 0:00:29.9]}
24. Ke1 {[%clk 0:01:16.7]} 24... Nf5 {[%clk 0:00:28]} 25. Qf2 {[%clk 0:01:14.8]}
25... Qb3 {[%clk 0:00:23.5]} 26. Bb4 {[%clk 0:01:02.5]} 26... Rxb4 {[%clk
0:00:23.1]} 27. cxb4 {[%clk 0:00:52.8]} 27... Qc3+ {[%clk 0:00:23.1]} 28. Kf1
{[%clk 0:00:52.3]} 28... Qxa1+ {[%clk 0:00:21.3]} 29. Kg2 {[%clk 0:00:53.2]}
29... Qd4 {[%clk 0:00:19.8]} 30. Qxd4 {[%clk 0:00:36.8]} 30... Nxd4 {[%clk
0:00:20.7]} 31. Bg4 {[%clk 0:00:37.4]} 31... Ke7 {[%clk 0:00:19.2]} 32. Rd1
{[%clk 0:00:37.2]} 32... Nc6 {[%clk 0:00:19.4]} 33. b5 {[%clk 0:00:38.1]} 33...
Na5 {[%clk 0:00:19.7]} 34. f5 {[%clk 0:00:38]} 34... Nc5 {[%clk 0:00:19.3]} 35.
fxe6 {[%clk 0:00:37.8]} 35... fxe6 {[%clk 0:00:19.7]} 36. Rf1 {[%clk 0:00:36.3]}
36... Rf8 {[%clk 0:00:19.3]} 37. Rb1 {[%clk 0:00:35.8]} 37... c3 {[%clk
0:00:18]} 38. h4 {[%clk 0:00:34.6]} 38... d4 {[%clk 0:00:17.5]} 0-1

[Event "*** SCC Grand Prix: Titled Tuesday Blitz"]
[Site "Chess.com"]
[Date "2020.07.07"]
[Round "8"]
[White "Usurpov"]
[Black "Maaikee"]
[Result "0-1"]
[WhiteElo "2387"]
[BlackElo "2299"]
[TimeControl "180+1"]
[EndTime "11:35:50 PDT"]
[Termination "Maaikee won by checkmate"]

1. e4 {[%clk 0:03:00.9]} 1... e6 {[%clk 0:03:00.1]} 2. d4 {[%clk 0:03:00.6]}
2... d5 {[%clk 0:03:00.3]} 3. e5 {[%clk 0:03:01.1]} 3... c5 {[%clk 0:02:59.8]}
4. c3 {[%clk 0:03:01.6]} 4... Nc6 {[%clk 0:02:59.7]} 5. Nf3 {[%clk 0:03:01.6]}
5... Bd7 {[%clk 0:02:59.8]} 6. a3 {[%clk 0:03:00.5]} 6... Rc8 {[%clk 0:02:53.7]}
7. Bd3 {[%clk 0:02:51.7]} 7... cxd4 {[%clk 0:02:21.2]} 8. cxd4 {[%clk
0:02:50.2]} 8... Qb6 {[%clk 0:02:21.8]} 9. Bc2 {[%clk 0:02:46.4]} 9... g5 {[%clk
0:01:57.7]} 10. h3 {[%clk 0:02:37.1]} 10... h5 {[%clk 0:01:56.5]} 11. Nc3 {[%clk
0:02:35.5]} 11... Bh6 {[%clk 0:01:36.5]} 12. Na4 {[%clk 0:02:06.5]} 12... Qc7
{[%clk 0:01:28.1]} 13. Be3 {[%clk 0:01:42.2]} 13... g4 {[%clk 0:01:09.4]} 14.
hxg4 {[%clk 0:01:40.6]} 14... hxg4 {[%clk 0:01:09.9]} 15. Ng5 {[%clk 0:00:55]}
15... Nxe5 {[%clk 0:00:51.3]} 16. Rc1 {[%clk 0:00:33.3]} 16... Nc4 {[%clk
0:00:48.7]} 17. Nc5 {[%clk 0:00:20]} 17... Nxe3 {[%clk 0:00:26.9]} 18. fxe3
{[%clk 0:00:19.7]} 18... Qg3+ {[%clk 0:00:26.5]} 19. Kf1 {[%clk 0:00:19.7]}
19... Qxe3 {[%clk 0:00:12.2]} 20. Nxd7 {[%clk 0:00:08.7]} 20... Qxg5 {[%clk
0:00:09.6]} 21. Ne5 {[%clk 0:00:06.7]} 21... Qf4+ {[%clk 0:00:08.7]} 22. Kg1
{[%clk 0:00:05]} 22... Qe3+ {[%clk 0:00:08]} 23. Kh2 {[%clk 0:00:04.1]} 23...
Bf4# {[%clk 0:00:07.5]} 0-1

[Event "*** SCC Grand Prix: Titled Tuesday Blitz"]
[Site "Chess.com"]
[Date "2020.07.07"]
[Round "8"]
[White "DonPreuss"]
[Black "OnePeculiarConundrum"]
[Result "0-1"]
[WhiteElo "2176"]
[BlackElo "2350"]
[TimeControl "180+1"]
[EndTime "11:35:50 PDT"]
[Termination "OnePeculiarConundrum won by resignation"]

1. d4 {[%clk 0:03:00.9]} 1... d5 {[%clk 0:02:59.2]} 2. e4 {[%clk 0:03:00.1]}
2... dxe4 {[%clk 0:02:57]} 3. Nc3 {[%clk 0:03:00.2]} 3... Nf6 {[%clk 0:02:56.1]}
4. f3 {[%clk 0:03:00.4]} 4... exf3 {[%clk 0:02:55.1]} 5. Nxf3 {[%clk 0:03:00.4]}
5... e6 {[%clk 0:02:54.6]} 6. Bd3 {[%clk 0:03:00.4]} 6... Nc6 {[%clk 0:02:54]}
7. Be3 {[%clk 0:02:58.2]} 7... Bb4 {[%clk 0:02:49]} 8. O-O {[%clk 0:02:57]} 8...
Ne7 {[%clk 0:02:43.2]} 9. Qe1 {[%clk 0:02:48.9]} 9... Ned5 {[%clk 0:02:42.3]}
10. Bd2 {[%clk 0:02:46.9]} 10... Nxc3 {[%clk 0:02:38.1]} 11. bxc3 {[%clk
0:02:47.8]} 11... Be7 {[%clk 0:02:35.4]} 12. Bg5 {[%clk 0:02:46.1]} 12... c5
{[%clk 0:02:34.5]} 13. Qh4 {[%clk 0:02:45.2]} 13... Bd7 {[%clk 0:02:28.7]} 14.
Ne5 {[%clk 0:02:36.1]} 14... cxd4 {[%clk 0:02:18.1]} 15. cxd4 {[%clk 0:02:35.1]}
15... Qc7 {[%clk 0:02:14.7]} 16. Rab1 {[%clk 0:02:01.9]} 16... h6 {[%clk
0:02:11.3]} 17. Nxd7 {[%clk 0:01:59.9]} 17... Kxd7 {[%clk 0:01:43.7]} 18. Bb5+
{[%clk 0:01:44.4]} 18... Kc8 {[%clk 0:01:42.1]} 19. Bf4 {[%clk 0:01:41.5]} 19...
Qc3 {[%clk 0:01:35.8]} 20. Be5 {[%clk 0:01:13]} 20... a6 {[%clk 0:01:31]} 21.
Rf3 {[%clk 0:00:51.7]} 21... Qa5 {[%clk 0:01:25.9]} 22. Bd3 {[%clk 0:00:39.4]}
22... Kd7 {[%clk 0:00:51]} 23. Rxb7+ {[%clk 0:00:35.3]} 23... Ke8 {[%clk
0:00:48.1]} 24. Rxe7+ {[%clk 0:00:35.1]} 24... Kxe7 {[%clk 0:00:46.8]} 25. Bxf6+
{[%clk 0:00:35.6]} 25... gxf6 {[%clk 0:00:46.1]} 26. Qxf6+ {[%clk 0:00:35.5]}
26... Kd6 {[%clk 0:00:45.7]} 27. c4 {[%clk 0:00:28.5]} 27... Qe1+ {[%clk
0:00:44]} 28. Rf1 {[%clk 0:00:28.3]} 28... Qe3+ {[%clk 0:00:43.7]} 29. Kh1
{[%clk 0:00:28]} 29... Qxd3 {[%clk 0:00:40.3]} 30. c5+ {[%clk 0:00:28]} 30...
Kc6 {[%clk 0:00:38]} 31. Qxf7 {[%clk 0:00:21.3]} 31... Qe4 {[%clk 0:00:35.3]}
32. Rf6 {[%clk 0:00:16.1]} 32... Rae8 {[%clk 0:00:33.2]} 33. h3 {[%clk
0:00:14.8]} 33... Rhf8 {[%clk 0:00:32.4]} 34. d5+ {[%clk 0:00:08.4]} 34... Qxd5
{[%clk 0:00:31.3]} 0-1

[Event "*** SCC Grand Prix: Titled Tuesday Blitz"]
[Site "Chess.com"]
[Date "2020.07.07"]
[Round "8"]
[White "isainz"]
[Black "Nara_Kh"]
[Result "0-1"]
[WhiteElo "2150"]
[BlackElo "2288"]
[TimeControl "180+1"]
[EndTime "11:35:52 PDT"]
[Termination "Nara_Kh won on time"]

1. e4 {[%clk 0:03:00.9]} 1... c5 {[%clk 0:02:56.7]} 2. Nf3 {[%clk 0:03:00.7]}
2... d6 {[%clk 0:02:55.8]} 3. d4 {[%clk 0:03:00.7]} 3... cxd4 {[%clk 0:02:56.1]}
4. Qxd4 {[%clk 0:03:00.8]} 4... a6 {[%clk 0:02:51.1]} 5. c4 {[%clk 0:03:00.3]}
5... Nc6 {[%clk 0:02:47.9]} 6. Qe3 {[%clk 0:03:00.7]} 6... g6 {[%clk 0:02:44.2]}
7. Nc3 {[%clk 0:02:59.6]} 7... Bg7 {[%clk 0:02:44.2]} 8. Be2 {[%clk 0:02:58.3]}
8... Nf6 {[%clk 0:02:42.8]} 9. h3 {[%clk 0:02:58.7]} 9... O-O {[%clk 0:02:41.4]}
10. O-O {[%clk 0:02:58.6]} 10... Nd7 {[%clk 0:02:40.5]} 11. Rb1 {[%clk 0:02:54]}
11... b6 {[%clk 0:02:28.9]} 12. Rd1 {[%clk 0:02:31.9]} 12... Bb7 {[%clk
0:02:27.6]} 13. b3 {[%clk 0:02:23.1]} 13... Qb8 {[%clk 0:02:20.2]} 14. Bb2
{[%clk 0:02:21.3]} 14... Rd8 {[%clk 0:02:05.6]} 15. Nd5 {[%clk 0:02:14.4]} 15...
Qa7 {[%clk 0:01:55.5]} 16. Bxg7 {[%clk 0:02:12.7]} 16... Kxg7 {[%clk 0:01:55.1]}
17. Nd4 {[%clk 0:01:31.5]} 17... e6 {[%clk 0:01:41.1]} 18. Nxc6 {[%clk
0:00:54.2]} 18... Bxc6 {[%clk 0:01:42]} 19. Nb4 {[%clk 0:00:50.7]} 19... Qc7
{[%clk 0:01:35.8]} 20. Qd4+ {[%clk 0:00:44.5]} 20... Nf6 {[%clk 0:01:29.6]} 21.
Nxc6 {[%clk 0:00:21.3]} 21... Qxc6 {[%clk 0:01:29]} 22. Bf3 {[%clk 0:00:18]}
22... e5 {[%clk 0:01:08.1]} 23. Qd3 {[%clk 0:00:14.3]} 23... a5 {[%clk
0:01:08.5]} 24. Rbc1 {[%clk 0:00:10.9]} 24... Qc5 {[%clk 0:01:06.9]} 25. Kf1
{[%clk 0:00:09.8]} 25... a4 {[%clk 0:01:06.6]} 26. Qc3 {[%clk 0:00:08.1]} 26...
axb3 {[%clk 0:01:05.5]} 27. axb3 {[%clk 0:00:08.5]} 27... Ra2 {[%clk 0:01:05.5]}
28. Rc2 {[%clk 0:00:05.1]} 28... Rda8 {[%clk 0:01:04.4]} 29. Rdd2 {[%clk
0:00:05.2]} 29... Ra1+ {[%clk 0:01:01.8]} 30. Ke2 {[%clk 0:00:05.5]} 30... Ne8
{[%clk 0:00:30.1]} 31. b4 {[%clk 0:00:05.2]} 31... Qc6 {[%clk 0:00:27.2]} 0-1

[Event "*** SCC Grand Prix: Titled Tuesday Blitz"]
[Site "Chess.com"]
[Date "2020.07.07"]
[Round "8"]
[White "harlem4brew"]
[Black "PattyCastillo"]
[Result "1-0"]
[WhiteElo "2113"]
[BlackElo "1941"]
[TimeControl "180+1"]
[EndTime "11:35:53 PDT"]
[Termination "harlem4brew won on time"]

1. d4 {[%clk 0:03:00]} 1... d5 {[%clk 0:02:55.5]} 2. Nf3 {[%clk 0:02:58]} 2...
Nf6 {[%clk 0:02:54.5]} 3. c4 {[%clk 0:02:55.3]} 3... c6 {[%clk 0:02:52.4]} 4.
Nc3 {[%clk 0:02:54.9]} 4... e6 {[%clk 0:02:51.6]} 5. Bg5 {[%clk 0:02:52.4]} 5...
h6 {[%clk 0:02:43.2]} 6. Bf4 {[%clk 0:02:50.5]} 6... Bd6 {[%clk 0:02:38]} 7.
Bxd6 {[%clk 0:02:49.3]} 7... Qxd6 {[%clk 0:02:38.9]} 8. Ne5 {[%clk 0:02:47.6]}
8... O-O {[%clk 0:02:36.2]} 9. e3 {[%clk 0:02:45.4]} 9... Nbd7 {[%clk
0:02:21.2]} 10. f4 {[%clk 0:02:38.7]} 10... b6 {[%clk 0:02:10.9]} 11. Qd2 {[%clk
0:02:36.2]} 11... Bb7 {[%clk 0:02:10.4]} 12. a3 {[%clk 0:02:33.7]} 12... Rfd8
{[%clk 0:02:02.2]} 13. b4 {[%clk 0:02:29.8]} 13... c5 {[%clk 0:02:00.2]} 14. Nb5
{[%clk 0:02:23.2]} 14... Qe7 {[%clk 0:01:41.5]} 15. Bd3 {[%clk 0:02:14.8]} 15...
a6 {[%clk 0:01:38.8]} 16. Nc3 {[%clk 0:02:10.7]} 16... dxc4 {[%clk 0:01:37.1]}
17. Bxc4 {[%clk 0:02:05.8]} 17... Rac8 {[%clk 0:01:24.1]} 18. Be2 {[%clk
0:01:55.8]} 18... cxb4 {[%clk 0:01:19.8]} 19. axb4 {[%clk 0:01:47.1]} 19... Qxb4
{[%clk 0:01:17.9]} 20. Rc1 {[%clk 0:01:45.7]} 20... Nxe5 {[%clk 0:01:08.2]} 21.
fxe5 {[%clk 0:01:42.8]} 21... Nd5 {[%clk 0:01:03.6]} 22. Na2 {[%clk 0:01:39.1]}
22... Qxd2+ {[%clk 0:01:01.3]} 23. Kxd2 {[%clk 0:01:37.8]} 23... a5 {[%clk
0:00:49]} 24. Rb1 {[%clk 0:01:34.1]} 24... Rc7 {[%clk 0:00:25.7]} 25. Rb2 {[%clk
0:01:29.8]} 25... Rdc8 {[%clk 0:00:25]} 26. Bf3 {[%clk 0:01:27.4]} 26... Bc6
{[%clk 0:00:09.1]} 27. Rhb1 {[%clk 0:01:19.4]} 27... b5 {[%clk 0:00:08.5]} 28.
Nc1 {[%clk 0:01:17.2]} 28... b4 {[%clk 0:00:07.7]} 29. Nd3 {[%clk 0:01:11.6]}
29... Bb5 {[%clk 0:00:05.6]} 30. Nc5 {[%clk 0:01:08.7]} 30... Rxc5 {[%clk
0:00:02.4]} 31. dxc5 {[%clk 0:01:07.1]} 31... Rxc5 {[%clk 0:00:03]} 32. Rc1
{[%clk 0:00:54]} 32... Rxc1 {[%clk 0:00:02.1]} 33. Kxc1 {[%clk 0:00:53.1]} 33...
Nxe3 {[%clk 0:00:01]} 34. Rd2 {[%clk 0:00:45.4]} 34... Nc4 {[%clk 0:00:01.3]}
35. Rd8+ {[%clk 0:00:44.3]} 35... Kh7 {[%clk 0:00:01.8]} 36. Be4+ {[%clk
0:00:44.1]} 36... g6 {[%clk 0:00:01.4]} 37. Rb8 {[%clk 0:00:44.2]} 1-0

[Event "*** SCC Grand Prix: Titled Tuesday Blitz"]
[Site "Chess.com"]
[Date "2020.07.07"]
[Round "8"]
[White "JesseKraai"]
[Black "Tekushka"]
[Result "1-0"]
[WhiteElo "2493"]
[BlackElo "2359"]
[TimeControl "180+1"]
[EndTime "11:35:54 PDT"]
[Termination "JesseKraai won on time"]

1. d4 {[%clk 0:03:00.9]} 1... d5 {[%clk 0:02:59.7]} 2. c4 {[%clk 0:03:01]} 2...
c6 {[%clk 0:03:00]} 3. Nc3 {[%clk 0:03:01]} 3... Nf6 {[%clk 0:02:59.5]} 4. cxd5
{[%clk 0:03:01.1]} 4... cxd5 {[%clk 0:02:59.1]} 5. Bf4 {[%clk 0:03:01.2]} 5...
Nc6 {[%clk 0:02:59.3]} 6. e3 {[%clk 0:03:01.5]} 6... Bf5 {[%clk 0:02:59.4]} 7.
Bb5 {[%clk 0:02:52.1]} 7... e6 {[%clk 0:02:57.3]} 8. Qa4 {[%clk 0:02:50.1]} 8...
Qb6 {[%clk 0:02:57]} 9. Nf3 {[%clk 0:02:48.6]} 9... Nd7 {[%clk 0:02:43.5]} 10.
O-O {[%clk 0:02:46.7]} 10... Be7 {[%clk 0:02:33]} 11. Rfc1 {[%clk 0:02:44.8]}
11... O-O {[%clk 0:02:24.8]} 12. Bxc6 {[%clk 0:02:20.6]} 12... bxc6 {[%clk
0:02:22.5]} 13. Qb3 {[%clk 0:02:20.2]} 13... c5 {[%clk 0:01:56.9]} 14. Qxb6
{[%clk 0:02:15.3]} 14... axb6 {[%clk 0:01:55.8]} 15. Nb5 {[%clk 0:02:07.2]}
15... Ra5 {[%clk 0:01:36.6]} 16. Nd6 {[%clk 0:01:59.2]} 16... Bg6 {[%clk
0:01:33.5]} 17. a3 {[%clk 0:01:49]} 17... c4 {[%clk 0:01:26.1]} 18. Ne5 {[%clk
0:01:31.8]} 18... Nxe5 {[%clk 0:01:08]} 19. dxe5 {[%clk 0:01:31.3]} 19... Rfa8
{[%clk 0:00:56.9]} 20. f3 {[%clk 0:01:26.6]} 20... b5 {[%clk 0:00:52.6]} 21. e4
{[%clk 0:01:02.1]} 21... b4 {[%clk 0:00:39.3]} 22. Bd2 {[%clk 0:01:00.8]} 22...
bxa3 {[%clk 0:00:28.8]} 23. Bxa5 {[%clk 0:00:43.6]} 23... axb2 {[%clk
0:00:28.2]} 24. Bc3 {[%clk 0:00:43]} 24... Rxa1 {[%clk 0:00:13]} 25. Rxa1 {[%clk
0:00:42.5]} 25... bxa1=Q+ {[%clk 0:00:12.8]} 26. Bxa1 {[%clk 0:00:42.9]} 26...
Kf8 {[%clk 0:00:09.6]} 27. exd5 {[%clk 0:00:40.5]} 27... exd5 {[%clk 0:00:09]}
28. Kf2 {[%clk 0:00:40.9]} 28... Bd8 {[%clk 0:00:06.7]} 29. Bd4 {[%clk
0:00:39.4]} 29... Ke7 {[%clk 0:00:06.4]} 30. f4 {[%clk 0:00:39]} 30... Bd3
{[%clk 0:00:04.9]} 31. Ke3 {[%clk 0:00:36.9]} 31... Ba5 {[%clk 0:00:03]} 32. Nb5
{[%clk 0:00:34.4]} 32... Ke6 {[%clk 0:00:01.4]} 33. g4 {[%clk 0:00:31.7]} 33...
g6 {[%clk 0:00:01.7]} 34. Nd6 {[%clk 0:00:28.4]} 1-0

[Event "*** SCC Grand Prix: Titled Tuesday Blitz"]
[Site "Chess.com"]
[Date "2020.07.07"]
[Round "8"]
[White "Onischuk_V"]
[Black "BocharovD"]
[Result "1-0"]
[WhiteElo "2895"]
[BlackElo "2755"]
[TimeControl "180+1"]
[EndTime "11:35:55 PDT"]
[Termination "Onischuk_V won by resignation"]

1. e4 {[%clk 0:02:59]} 1... c5 {[%clk 0:02:58.9]} 2. Ne2 {[%clk 0:02:58.2]} 2...
e6 {[%clk 0:02:46.5]} 3. g3 {[%clk 0:02:56.5]} 3... d5 {[%clk 0:02:45.5]} 4. Bg2
{[%clk 0:02:55.8]} 4... dxe4 {[%clk 0:02:45.4]} 5. Nbc3 {[%clk 0:02:55.9]} 5...
f5 {[%clk 0:02:32.1]} 6. d3 {[%clk 0:02:53.1]} 6... exd3 {[%clk 0:02:32.4]} 7.
cxd3 {[%clk 0:02:52.9]} 7... Nf6 {[%clk 0:02:22.4]} 8. O-O {[%clk 0:02:46.4]}
8... Nc6 {[%clk 0:02:22.2]} 9. Re1 {[%clk 0:02:43.5]} 9... Be7 {[%clk
0:02:07.5]} 10. Nf4 {[%clk 0:02:35.2]} 10... Nd4 {[%clk 0:02:05.4]} 11. Be3
{[%clk 0:02:34.3]} 11... O-O {[%clk 0:02:02.6]} 12. Bxd4 {[%clk 0:02:29.1]}
12... cxd4 {[%clk 0:01:58.9]} 13. Nb5 {[%clk 0:02:17.2]} 13... a6 {[%clk
0:01:51.8]} 14. Na3 {[%clk 0:02:17]} 14... Bxa3 {[%clk 0:01:45.6]} 15. bxa3
{[%clk 0:02:16.7]} 15... Qd6 {[%clk 0:01:42.3]} 16. Qb3 {[%clk 0:02:16]} 16...
Re8 {[%clk 0:01:42.4]} 17. Rac1 {[%clk 0:01:20.1]} 17... Kh8 {[%clk 0:01:38.4]}
18. Qb4 {[%clk 0:01:06.7]} 18... Qd8 {[%clk 0:00:55.7]} 19. Re5 {[%clk
0:00:59.9]} 19... Ng4 {[%clk 0:00:52.4]} 20. Rec5 {[%clk 0:00:55]} 20... e5
{[%clk 0:00:32.2]} 21. Nd5 {[%clk 0:00:54.4]} 21... a5 {[%clk 0:00:28]} 22. Qb6
{[%clk 0:00:51.5]} 22... Bd7 {[%clk 0:00:17]} 23. Nc7 {[%clk 0:00:45.1]} 23...
Rb8 {[%clk 0:00:12.4]} 24. Qd6 {[%clk 0:00:39]} 24... Rf8 {[%clk 0:00:09.9]} 25.
h3 {[%clk 0:00:32.1]} 25... Nh6 {[%clk 0:00:07.1]} 26. Qxe5 {[%clk 0:00:31.4]}
26... Bc6 {[%clk 0:00:07.1]} 27. Ne6 {[%clk 0:00:29.8]} 27... Qd7 {[%clk
0:00:04.6]} 28. Nxf8 {[%clk 0:00:28.7]} 28... Rxf8 {[%clk 0:00:05.5]} 29. Bxc6
{[%clk 0:00:27.2]} 29... bxc6 {[%clk 0:00:06.4]} 30. Rxc6 {[%clk 0:00:27.4]}
30... Nf7 {[%clk 0:00:05.4]} 31. Qc5 {[%clk 0:00:24.4]} 1-0